bitfinex/quotes_BTCUSD_20240607
["timestamp","ask_amount","ask_price","bid_price","bid_amount"]
[1717784188567,0.44173593,69005.0,69000.0,0.0006773]
[1717784188786,0.297325,69001.0,69000.0,0.0006773]
[1717784188985,0.297325,69001.0,68989.0,0.00854]
[1717784188986,0.29673605,68990.0,68989.0,0.00854]
[1717784189191,0.21959302,68990.0,68989.0,0.00854]
[1717784189614,0.144914,69007.0,68989.0,0.00854]
[1717784189831,0.144919,69004.0,69001.0,0.2]
[1717784190033,0.43336945,69024.0,68990.0,0.021304]
[1717784190034,0.50559769,69024.0,68990.0,0.14441893]
[1717784190247,0.50559769,69024.0,68999.0,0.07222824]
[1717784190248,0.07524171,69023.0,68999.0,0.07222824]
[1717784190446,0.07524171,69023.0,69021.0,0.07222824]
[1717784190655,0.14487,69028.0,69021.0,0.07222824]
[1717784190850,0.14487,69028.0,69013.0,0.07222824]
[1717784190851,0.1005,69049.0,69022.0,0.2]
[1717784191056,0.1005,69049.0,69022.0,0.14441893]
[1717784191057,0.21964474,69048.0,69022.0,0.14441893]
[1717784191261,0.21964474,69048.0,68993.0,0.43336945]
[1717784191262,0.1524,69032.0,69001.0,0.63336945]
[1717784191448,0.21964474,69031.0,69002.0,0.14441893]
[1717784191657,0.07522581,69030.0,69001.0,0.43336945]
[1717784191792,0.289739,69028.0,69002.0,0.57778838]
[1717784191995,0.289739,69028.0,69002.0,0.14441893]
[1717784192199,0.1524,69026.0,69002.0,0.14441893]
[1717784192395,0.1740747,69026.0,69004.0,0.07222824]
[1717784192598,0.1,69034.0,69018.0,0.07222824]
[1717784192818,0.1740734,69034.0,69010.0,0.07222824]
[1717784193018,0.144878,69024.0,69022.0,0.21664717]
[1717784193222,0.144878,69024.0,69023.0,0.07222824]
[1717784193428,0.144878,69024.0,69023.0,0.14441893]
[1717784193821,0.174052,69048.0,69023.0,0.34441893]
[1717784194028,0.144863,69031.0,69027.0,0.14441893]
[1717784194457,0.144846,69039.0,69030.0,0.14441893]
[1717784194656,0.144851,69037.0,69034.0,0.14441893]
[1717784195093,0.3717855,69064.0,69025.0,0.203]
[1717784195094,0.07222824,69063.0,69025.0,0.203]
[1717784195282,0.1524,69058.0,69026.0,0.21664717]
[1717784195492,0.1524,69058.0,69033.0,0.07222824]
[1717784195493,0.1524,69056.0,69033.0,0.07222824]
[1717784195661,0.22761047,69055.0,69034.0,0.14441893]
[1717784195864,0.144876,69025.0,69015.0,0.1929]
[1717784196087,0.07222824,69052.0,69016.0,0.43336945]
[1717784196088,0.1524,69040.0,69016.0,0.43336945]
[1717784196311,0.1524,69040.0,69005.0,0.1929]
[1717784196312,0.3264393,69040.0,69013.0,0.07222824]
[1717784196534,0.14453241,69017.0,69014.0,0.2]
[1717784196756,0.1740393,69040.0,69019.0,0.19995288]
[1717784196757,0.144875,69025.0,69019.0,0.19995288]
[1717784196910,0.5885,69049.0,69013.0,0.07222824]
[1717784196911,0.4885,69049.0,69025.0,0.27218112]
[1717784197120,0.4885,69049.0,69026.0,0.14441893]
[1717784197324,0.289659,69047.0,69025.0,0.00085]
[1717784197535,0.63291893,69049.0,69025.0,0.00085]
[1717784197536,0.07521948,69046.0,69025.0,0.00085]
[1717784197709,0.6625138,69049.0,69025.0,0.00085]
[1717784197710,0.144841,69041.0,69039.0,0.07222824]
[1717784197911,0.289541,69075.0,69039.0,0.07222824]
[1717784197912,0.01041416,69069.0,69040.0,0.2009]
[1717784198210,0.07520645,69068.0,69049.0,0.19995288]
[1717784198405,0.44378361,69077.0,69050.0,0.14441893]
[1717784198406,0.43336945,69077.0,69050.0,0.14441893]
[1717784198591,0.1524,69059.0,69028.0,0.1947]
[1717784198794,0.07519208,69076.0,69028.0,0.1947]
[1717784198795,0.77758,69066.0,69043.0,0.07222824]
[1717784198997,0.07520357,69058.0,69036.0,0.07222824]
[1717784199220,0.144858,69033.0,69031.0,0.07222824]
[1717784199429,0.1739994,69057.0,69033.0,0.19995288]
[1717784199639,0.07521388,69056.0,69036.0,0.07222824]
[1717784199853,0.07521388,69056.0,69030.0,0.14441893]
[1717784199854,0.14486,69032.0,69030.0,0.14441893]
[1717784200059,0.14486,69032.0,69024.0,0.19995288]
[1717784200060,0.1739994,69057.0,69031.0,0.57778838]
[1717784200277,0.1739994,69057.0,69033.0,0.34437181]
[1717784200479,0.1739994,69057.0,69036.0,0.07222824]
[1717784200480,0.07520837,69056.0,69036.0,0.07222824]
[1717784200700,0.14482,69051.0,69050.0,0.07222824]
[1717784200904,0.144814,69055.0,69045.0,0.0978]
[1717784201112,0.0969,69084.0,69049.0,0.19995288]
[1717784201312,0.43336945,69077.0,69049.0,0.19995288]
[1717784201522,0.289529,69078.0,69049.0,0.19995288]
[1717784201734,0.289566,69069.0,69049.0,0.14441893]
[1717784201957,0.144822,69050.0,69049.0,0.14441893]
[1717784202159,0.4875,69077.0,69049.0,0.14441893]
[1717784202364,0.14482,69051.0,69050.0,0.14441893]
[1717784202777,0.14482,69051.0,69050.0,0.36437181]
[1717784203203,0.289582,69065.0,69041.0,0.19995288]
[1717784203423,0.144843,69040.0,69033.0,0.19995288]
[1717784203647,0.1524,69049.0,69025.0,0.00085]
[1717784203839,0.144872,69026.0,69025.0,0.00085]
[1717784204043,0.144869,69028.0,69025.0,0.00085]
[1717784204254,0.1740283,69049.0,69025.0,0.20080288]
[1717784204458,0.1740283,69049.0,69026.0,0.07222824]
[1717784204688,0.1740283,69049.0,69029.0,0.14441893]
[1717784204918,0.10112824,69066.0,69036.0,0.19995288]
[1717784204919,0.144847,69038.0,69036.0,0.19995288]
[1717784205146,0.144847,69038.0,69037.0,0.14441893]
[1717784206055,0.1739974,69058.0,69038.0,0.197]
[1717784206290,0.43336945,69070.0,69053.0,0.07222824]
[1717784206291,0.144814,69054.0,69053.0,0.07222824]
[1717784206613,0.289494,69086.0,69053.0,0.07222824]
[1717784206614,0.144798,69062.0,69055.0,0.19995288]
[1717784206841,0.144798,69062.0,69061.0,0.21995288]
[1717784207286,0.144798,69062.0,69061.0,0.36437181]
[1717784207540,0.14479,69066.0,69063.0,0.19995288]
[1717784207801,0.14479,69066.0,69065.0,0.19995288]
[1717784208027,0.14109885,69066.0,69065.0,0.34437181]
[1717784208254,0.0064,69088.0,69070.0,0.19995288]
[1717784208479,0.144773,69074.0,69073.0,0.19995288]
[1717784208728,0.144773,69074.0,69073.0,0.36437181]
[1717784208977,0.1524,69086.0,69053.0,0.30335288]
[1717784209201,0.144788,69067.0,69059.0,0.19995288]
[1717784209413,0.14479,69066.0,69063.0,0.19995288]
[1717784209644,0.144771,69075.0,69072.0,0.19995288]
[1717784209885,0.0064,69088.0,69075.0,0.12792073]
[1717784210100,0.0064,69088.0,69074.0,0.02]
[1717784210101,0.144768,69076.0,69074.0,0.12792073]
[1717784210334,0.144768,69076.0,69075.0,0.14441893]
[1717784210546,0.343076,69072.0,69071.0,0.12792073]
[1717784210774,0.343076,69072.0,69041.0,0.43336945]
[1717784210775,0.1524,69069.0,69041.0,0.43336945]
[1717784210998,0.144838,69043.0,69041.0,0.43336945]
[1717784211464,0.1524,69067.0,69025.0,0.00085]
[1717784211680,0.144844,69040.0,69031.0,0.21664717]
[1717784211885,0.144852,69036.0,69031.0,0.14441893]
[1717784212103,0.14486,69032.0,69031.0,0.14441893]
[1717784212518,0.289623,69056.0,69025.0,0.00085]
[1717784212519,0.14456772,69027.0,69025.0,0.00085]
[1717784212724,0.14456772,69027.0,69026.0,0.14441893]
[1717784212949,0.01,69050.0,69026.0,0.14441893]
[1717784212950,0.01041566,69055.0,69026.0,0.15894582]
[1717784213154,0.30088515,69054.0,69031.0,0.14441893]
[1717784213369,0.07522198,69053.0,69031.0,0.14441893]
[1717784213577,0.53389798,69053.0,69031.0,0.14441893]
[1717784213792,0.1929,69059.0,69032.0,0.21664717]
[1717784213793,0.144842,69041.0,69032.0,0.21664717]
[1717784213997,0.289612,69058.0,69032.0,0.14441893]
[1717784214211,0.07520599,69057.0,69041.0,0.14441893]
[1717784214416,0.1929,69059.0,69041.0,0.14441893]
[1717784214832,0.1739833,69064.0,69043.0,0.2096]
[1717784215036,0.144811,69056.0,69050.0,0.07222824]
[1717784215248,0.144799,69062.0,69055.0,0.14441893]
[1717784215463,0.43336945,69092.0,69061.0,0.14441893]
[1717784215464,0.144782,69070.0,69061.0,0.14441893]
[1717784215675,0.144782,69070.0,69069.0,0.14441893]
[1717784215888,0.114425,69070.0,69069.0,0.14441893]
[1717784216099,0.43336945,69091.0,69069.0,0.14441893]
[1717784216336,0.00093501,69094.0,69070.0,0.14441893]
[1717784216337,0.07222824,69082.0,69070.0,0.14441893]
[1717784216525,0.144775,69073.0,69071.0,0.14441893]
[1717784217360,0.00093501,69094.0,69056.0,0.07222824]
[1717784217361,0.144759,69080.0,69072.0,0.14441893]
[1717784217581,0.00093501,69094.0,69072.0,0.14441893]
[1717784218937,0.144782,69070.0,69044.0,0.1007]
[1717784219229,0.07222824,69080.0,69035.0,0.43336945]
[1717784219230,0.14483,69047.0,69045.0,0.14441893]
[1717784219657,0.144812,69055.0,69045.0,0.14441893]
[1717784219876,0.289547,69074.0,69045.0,0.14441893]
[1717784220117,0.1524,69071.0,69045.0,0.14441893]
[1717784220356,0.144829,69047.0,69045.0,0.14441893]
[1717784220599,0.144866,69030.0,69020.0,0.1916]
[1717784220828,0.144871,69027.0,69019.0,0.43336945]
[1717784221079,0.144871,69027.0,69009.0,0.1916]
[1717784221524,0.144871,69027.0,69006.0,0.09558]
[1717784221807,0.144912,69007.0,69006.0,8e-05]
[1717784222045,0.36732824,69026.0,68987.0,0.43336945]
[1717784222046,0.144931,68999.0,68987.0,0.43336945]
[1717784222271,0.1524,69014.0,68989.0,0.00801758]
[1717784222272,0.144948,68990.0,68989.0,0.00801758]
[1717784222760,0.22021849,68990.0,68989.0,0.00801758]
[1717784223200,0.144948,68990.0,68989.0,0.00801758]
[1717784223419,0.01,69010.0,68989.0,0.00801758]
[1717784223420,0.1034,69012.0,68989.0,0.15243651]
[1717784223652,0.1034,69012.0,68990.0,0.15948724]
[1717784223653,0.2493662,69010.0,68990.0,0.15948724]
[1717784223886,0.144936,68996.0,68991.0,0.07222824]
[1717784224105,0.144913,69007.0,68995.0,0.14441893]
[1717784224349,0.299713,69034.0,68992.0,0.3065]
[1717784224350,0.1740457,69034.0,69002.0,0.14441893]
[1717784224575,0.10430157,69053.0,69002.0,0.14441893]
[1717784224576,0.0002672,69041.0,69033.0,0.37872824]
[1717784224802,0.43336945,69035.0,69034.0,0.00078653]
[1717784225030,0.0002672,69041.0,69033.0,0.37872824]
[1717784225266,0.0002672,69041.0,69034.0,0.1503668]
[1717784225500,0.0002672,69041.0,69035.0,0.14441893]
[1717784225747,0.0002672,69041.0,69040.0,0.14441893]
[1717784225958,0.1250962,69047.0,69040.0,0.14441893]
[1717784226170,0.144839,69042.0,69040.0,0.14441893]
[1717784226398,0.144839,69042.0,69014.0,0.03176926]
[1717784226399,0.652,69053.0,69020.0,0.101]
[1717784226654,0.144892,69017.0,69013.0,0.1941]
[1717784227098,0.10832089,69051.0,69013.0,0.1941]
[1717784227099,0.144864,69031.0,69014.0,0.07222824]
[1717784227311,0.144841,69041.0,69028.0,0.07222824]
[1717784227528,0.144847,69039.0,69037.0,0.14441893]
[1717784227782,0.144847,69039.0,69012.0,0.101]
[1717784227783,0.144912,69007.0,69006.0,8e-05]
[1717784228005,0.144924,69002.0,68991.0,0.15044588]
[1717784228255,0.144922,69003.0,68992.0,0.00239197]
[1717784228465,0.01040532,69021.0,68989.0,0.08024582]
[1717784228466,0.289777,69019.0,68989.0,0.00801758]
[1717784228684,0.289777,69019.0,68993.0,0.14441893]
[1717784228685,0.144938,68995.0,68993.0,0.14441893]
[1717784228892,0.144944,68992.0,68991.0,0.14441893]
[1717784229360,0.144924,69002.0,68991.0,0.14441893]
[1717784229571,0.14494,68995.0,68993.0,0.14441893]
[1717784229811,0.14494,68995.0,68989.0,0.00801758]
[1717784229812,0.144946,68991.0,68989.0,0.00801758]
[1717784230031,0.144946,68991.0,68990.0,0.14441893]
[1717784230488,0.144946,68991.0,68989.0,0.00801758]
[1717784230489,0.440346,68991.0,68989.0,0.00801758]
[1717784230745,0.85704717,68990.0,68989.0,0.00801758]
[1717784230965,0.78233612,68990.0,68989.0,0.00801758]
[1717784231173,0.145005,68963.0,68955.0,0.00854]
[1717784231402,0.592805,68963.0,68955.0,0.00854]
[1717784231632,0.78110572,68963.0,68955.0,0.00854]
[1717784231870,1.14642421,68963.0,68955.0,0.00854]
[1717784232089,0.1524,68958.0,68950.0,0.00854]
[1717784232315,0.587491,68951.0,68950.0,0.00854]
[1717784232522,0.28944893,68951.0,68950.0,0.00854]
[1717784232765,0.14503,68951.0,68950.0,0.15295893]
[1717784233240,0.144998,68967.0,68950.0,0.15295893]
[1717784233479,0.14457865,68965.0,68964.0,0.14441893]
[1717784233696,0.144998,68967.0,68964.0,0.14441893]
[1717784233939,0.144998,68967.0,68965.0,0.14441893]
[1717784234158,0.2103,68984.0,68950.0,0.00854]
[1717784234159,0.14503,68951.0,68950.0,0.00854]
[1717784234375,0.14503,68951.0,68950.0,0.15295893]
[1717784234615,0.1741839,68979.0,68950.0,0.15295893]
[1717784234878,0.43336945,68977.0,68960.0,0.07222824]
[1717784235106,0.941928,68983.0,68950.0,0.00854]
[1717784235349,0.140759,68952.0,68950.0,0.00854]
[1717784236548,0.347959,68952.0,68950.0,0.00854]
[1717784236749,0.1724,68951.0,68950.0,0.00854]
[1717784236988,0.01,68951.0,68950.0,0.00854]
[1717784237223,0.1524,68951.0,68950.0,0.00854]
[1717784237437,0.1524,68951.0,68947.0,0.00085]
[1717784237438,0.01,68949.0,68947.0,0.00085]
[1717784237674,0.145089,68923.0,68910.0,8e-05]
[1717784237898,0.145089,68923.0,68903.0,0.43336945]
[1717784238483,0.145089,68923.0,68881.0,0.17856824]
[1717784238484,0.290223,68913.0,68904.0,0.43336945]
[1717784238635,0.145127,68905.0,68904.0,0.43336945]
[1717784238845,0.289998,68966.0,68905.0,0.3083]
[1717784239057,0.50559769,68982.0,68895.0,0.07222824]
[1717784239058,0.14502,68956.0,68948.0,0.07222824]
[1717784239274,0.54156577,68982.0,68941.0,0.07222824]
[1717784239275,0.43336945,68982.0,68941.0,0.07222824]
[1717784239480,1.1415,68981.0,68941.0,0.07222824]
[1717784239718,0.145057,68938.0,68936.0,0.3052]
[1717784239925,0.145034,68950.0,68937.0,0.50559769]
[1717784240128,0.145042,68946.0,68944.0,0.07222824]
[1717784240325,0.145042,68946.0,68945.0,0.14441893]
[1717784240583,0.43336945,68974.0,68945.0,0.14441893]
[1717784240791,0.145032,68950.0,68949.0,0.14441893]
[1717784241942,0.1741881,68978.0,68950.0,0.3052]
[1717784242180,0.43336945,68994.0,68977.0,0.14441893]
[1717784242384,0.72315045,69018.0,68974.0,0.07222824]
[1717784242385,0.144964,68983.0,68981.0,0.14441893]
[1717784242595,0.72315045,69018.0,68982.0,0.14441893]
[1717784242810,0.43336945,69018.0,68989.0,0.14441893]
[1717784243030,0.6896,69020.0,68990.0,0.21664717]
[1717784243230,0.144937,68996.0,68990.0,0.14441893]
[1717784243447,0.144937,68996.0,68995.0,0.14441893]
[1717784243661,0.01,69044.0,68995.0,0.14441893]
[1717784243875,0.43336945,69039.0,69022.0,0.07222824]
[1717784244102,0.48943501,69047.0,69022.0,0.07222824]
[1717784244103,0.00093501,69047.0,69022.0,0.07222824]
[1717784244313,0.144863,69031.0,69022.0,0.07222824]
[1717784244537,0.144863,69031.0,69026.0,0.14441893]
[1717784244787,0.144863,69031.0,69027.0,0.2091]
[1717784244997,0.144868,69028.0,69027.0,0.2091]
[1717784245216,0.144855,69035.0,69029.0,0.0983]
[1717784245644,0.144851,69037.0,69029.0,0.0983]
[1717784245851,0.144831,69046.0,69036.0,0.07222824]
[1717784246107,0.144831,69046.0,69045.0,0.14441893]
[1717784246749,0.144858,69034.0,69029.0,0.0983]
[1717784247032,0.289572,69068.0,69033.0,0.14441893]
[1717784247249,0.2002,69077.0,69045.0,0.07222824]
[1717784247250,0.144822,69051.0,69045.0,0.07222824]
[1717784247471,0.43336945,69084.0,69045.0,0.07222824]
[1717784247472,0.144801,69060.0,69059.0,0.07222824]
[1717784248327,0.2002,69089.0,69059.0,0.21664717]
[1717784248543,0.14479,69066.0,69063.0,0.14441893]
[1717784248758,0.2002,69089.0,69063.0,0.14441893]
[1717784248759,0.144792,69065.0,69063.0,0.14441893]
[1717784249209,0.1444938,69065.0,69063.0,0.14441893]
[1717784249866,0.1444938,69065.0,69064.0,0.21664717]
[1717784250289,0.07222824,69087.0,69049.0,0.0966]
[1717784250507,0.2002,69089.0,69046.0,0.2014]
[1717784250508,0.01,69082.0,69052.0,0.07222824]
[1717784250722,0.144808,69057.0,69052.0,0.07222824]
[1717784250945,0.144816,69053.0,69047.0,0.43336945]
[1717784251182,0.144797,69062.0,69056.0,0.07222824]
[1717784251608,0.144797,69062.0,69061.0,0.14441893]
[1717784251826,0.1016,69093.0,69061.0,0.14441893]
[1717784252060,0.1016,69093.0,69067.0,0.07222824]
[1717784252288,0.00093501,69094.0,69067.0,0.31524717]
[1717784252527,0.144782,69069.0,69067.0,0.24301893]
[1717784252733,0.144782,69069.0,69067.0,0.14441893]
[1717784253162,0.144782,69069.0,69068.0,0.07222824]
[1717784253377,0.144782,69069.0,69068.0,0.21664717]
[1717784254086,0.144782,69069.0,69068.0,0.14441893]
[1717784254309,0.00093501,69094.0,69068.0,0.14441893]
[1717784254310,0.144765,69078.0,69068.0,0.14441893]
[1717784254524,0.144765,69078.0,69056.0,0.07222824]
[1717784254525,0.144767,69077.0,69072.0,0.14441893]
[1717784255381,0.144769,69076.0,69072.0,0.14441893]
[1717784255595,0.144774,69073.0,69072.0,0.14441893]
[1717784256465,0.01,69091.0,69048.0,0.43336945]
[1717784256466,0.01,69080.0,69048.0,0.43336945]
[1717784256669,0.289498,69085.0,69052.0,0.07222824]
[1717784256882,0.00093501,69094.0,69067.0,0.14441893]
[1717784257097,0.144784,69069.0,69067.0,0.14441893]
[1717784257522,0.144784,69069.0,69068.0,0.07222824]
[1717784257743,0.144784,69069.0,69068.0,0.21664717]
[1717784257954,0.144784,69069.0,69068.0,0.14441893]
[1717784258584,0.01,69091.0,69059.0,0.07222824]
[1717784258585,0.144801,69060.0,69059.0,0.07222824]
[1717784258804,0.01,69085.0,69059.0,0.14441893]
[1717784259016,0.837342,69107.0,69045.0,0.07222824]
[1717784259017,0.14475,69046.0,69045.0,0.07222824]
[1717784259195,0.289531,69078.0,69044.0,0.02]
[1717784259196,0.289562,69070.0,69044.0,0.02]
[1717784259395,0.144841,69041.0,69040.0,0.02]
[1717784259837,0.144863,69031.0,69028.0,0.1009]
[1717784260057,0.144864,69030.0,69028.0,0.1009]
[1717784260281,0.144864,69030.0,68997.0,0.02175463]
[1717784260282,0.144864,69030.0,69029.0,0.14441893]
[1717784260485,0.144864,69030.0,69029.0,0.21664717]
[1717784260691,0.289607,69059.0,69033.0,0.02]
[1717784260871,0.144824,69049.0,69048.0,0.02]
[1717784261527,0.144803,69060.0,69058.0,0.02]
[1717784261729,0.144803,69060.0,69047.0,0.07222824]
[1717784261730,0.144803,69060.0,69059.0,0.23664717]
[1717784262139,0.4633943,69094.0,69059.0,0.14441893]
[1717784262368,0.144787,69067.0,69065.0,0.07222824]
[1717784262558,0.144799,69061.0,69059.0,0.14441893]
[1717784262766,0.07222824,69092.0,69029.0,0.07222824]
[1717784262767,0.144837,69043.0,69042.0,0.02]
[1717784262972,0.144837,69043.0,69042.0,0.16441893]
[1717784263186,0.14481,69056.0,69054.0,0.02]
[1717784263395,0.2785612,69078.0,69055.0,0.14441893]
[1717784263396,0.43336945,69077.0,69055.0,0.14441893]
[1717784263604,0.1524,69075.0,69059.0,0.7229]
[1717784263812,0.144801,69060.0,69059.0,0.7229]
[1717784265080,0.434404,69060.0,69059.0,0.7229]
[1717784265297,0.434404,69060.0,69059.0,0.72231867]
[1717784265670,0.434404,69060.0,69059.0,0.71781867]
[1717784266443,0.551104,69060.0,69059.0,0.71781867]
[1717784266644,1.23752593,69060.0,69059.0,0.71781867]
[1717784266790,1.09272493,69060.0,69059.0,0.71781867]
[1717784267229,1.09272493,69060.0,69029.0,0.00085]
[1717784267230,0.2,69058.0,69029.0,0.00085]
[1717784267374,0.144864,69030.0,69029.0,0.00085]
[1717784267829,0.144864,69030.0,69000.0,0.1026]
[1717784267830,0.144921,69003.0,69000.0,0.1026]
[1717784268041,0.144921,69003.0,69002.0,0.45336945]
[1717784268262,0.488,69041.0,69018.0,0.02]
[1717784268477,0.144885,69020.0,69019.0,0.14441893]
[1717784268694,0.144885,69020.0,69019.0,0.16441893]
[1717784269372,0.1740379,69054.0,69042.0,0.02]
[1717784269373,0.3859379,69054.0,69042.0,0.02]
[1717784269577,0.2119,69074.0,69055.0,0.02]
[1717784269790,0.14481,69056.0,69055.0,0.02]
[1717784270654,0.14481,69056.0,69055.0,0.16441893]
[1717784270860,0.144793,69064.0,69063.0,0.02]
[1717784271063,0.144793,69064.0,69063.0,0.16441893]
[1717784271287,0.144793,69064.0,69063.0,0.29477313]
[1717784271502,0.144793,69064.0,69063.0,0.29476737]
[1717784271723,0.144793,69064.0,69063.0,0.14441893]
[1717784272375,0.144793,69064.0,69063.0,0.31477605]
[1717784272797,0.11705419,69064.0,69063.0,0.31477605]
[1717784273222,0.11705419,69064.0,69063.0,0.31476545]
[1717784274076,0.00093501,69080.0,69074.0,0.02]
[1717784274077,0.14477,69075.0,69074.0,0.02]
[1717784274292,0.14477,69075.0,69074.0,0.31476545]
[1717784275537,0.00093501,69080.0,69074.0,0.31476545]
[1717784275769,0.00093501,69080.0,69071.0,0.02175152]
[1717784275770,0.00093501,69080.0,69079.0,0.16441893]
[1717784275977,0.14569401,69080.0,69079.0,0.31476545]
[1717784277559,0.01040818,69100.0,69090.0,0.02]
[1717784277760,0.01040818,69100.0,69099.0,0.02]
[1717784277761,0.144717,69100.0,69099.0,0.02]
[1717784277980,0.144717,69100.0,69099.0,0.29476545]
[1717784278186,0.144717,69100.0,69099.0,0.14441893]
[1717784278402,0.21986001,69100.0,69099.0,0.16441893]
[1717784278622,0.144717,69100.0,69099.0,0.16441893]
[1717784278837,0.144717,69100.0,69099.0,0.31470081]
[1717784279248,0.144717,69100.0,69099.0,0.29470081]
[1717784279458,0.144717,69100.0,69099.0,0.31469695]
[1717784279981,0.202638,69107.0,69106.0,0.02]
[1717784280216,0.144703,69107.0,69106.0,0.17027802]
[1717784280461,0.144703,69107.0,69106.0,0.31469695]
[1717784280702,0.202612,69107.0,69106.0,0.50949695]
[1717784281162,0.144703,69107.0,69106.0,0.50949695]
[1717784281593,0.0718364,69110.0,69109.0,0.02]
[1717784281868,0.0139304,69110.0,69109.0,0.31469695]
[1717784282961,0.0139304,69110.0,69109.0,0.32469695]
[1717784283240,0.00939401,69117.0,69110.0,0.02]
[1717784283441,0.144693,69112.0,69110.0,0.14441893]
[1717784283683,0.00939401,69117.0,69091.0,0.308]
[1717784283893,0.00939401,69117.0,69095.0,0.02]
[1717784283894,0.01881001,69111.0,69095.0,0.02]
[1717784284107,0.15409901,69111.0,69110.0,0.02]
[1717784284326,0.15409901,69111.0,69110.0,0.15023076]
[1717784284506,0.144716,69101.0,69099.0,0.02]
[1717784284770,0.00940501,69111.0,69097.0,0.02]
[1717784284987,0.00940501,69111.0,69100.0,0.2946615]
[1717784285206,0.00940501,69111.0,69083.0,0.02]
[1717784285207,0.057913,69102.0,69083.0,0.02]
[1717784285424,0.057913,69102.0,69090.0,0.02]
[1717784285648,0.057913,69102.0,69078.0,0.43336945]
[1717784285649,0.144734,69092.0,69091.0,0.16441893]
[1717784286119,0.144734,69092.0,69069.0,0.02173583]
[1717784286120,0.144786,69067.0,69066.0,0.20882022]
[1717784286332,0.289495,69086.0,69042.0,0.20882022]
[1717784286333,0.434491,69046.0,69042.0,0.20882022]
[1717784286512,0.434491,69046.0,69021.0,0.43336945]
[1717784286513,0.3009,69016.0,69006.0,0.21107779]
[1717784286750,0.144925,69001.0,69000.0,0.21107779]
[1717784286943,0.144925,69001.0,68990.0,0.02269465]
[1717784287165,0.51143987,69027.0,69000.0,0.14441893]
[1717784287368,0.144923,69002.0,69000.0,0.14441893]
[1717784288012,0.144923,69002.0,69001.0,0.02]
[1717784288219,0.75886945,69027.0,69001.0,0.02]
[1717784288220,0.144901,69013.0,69012.0,0.02]
[1717784288439,0.144901,69013.0,69012.0,0.16441893]
[1717784288668,0.144901,69013.0,69012.0,0.14441893]
[1717784288903,0.60745915,69027.0,68997.0,0.02]
[1717784288904,0.144931,68998.0,68997.0,0.02]
[1717784289129,0.144931,68998.0,68997.0,0.14441893]
[1717784289360,0.144931,68998.0,68997.0,0.16441893]
[1717784289889,0.144931,68998.0,68997.0,0.14441893]
[1717784290131,0.1,69022.0,68993.0,0.00749542]
[1717784290132,0.14494,68994.0,68993.0,0.00749542]
[1717784290405,0.92332,68994.0,68993.0,0.00749542]
[1717784290664,0.92332,68994.0,68940.0,0.1029]
[1717784290665,1.72142233,68994.0,68940.0,0.1029]
[1717784290884,1.72142233,68994.0,68944.0,0.02]
[1717784290885,0.145011,68960.0,68944.0,0.02]
[1717784291096,0.145011,68960.0,68928.0,0.1029]
[1717784291350,0.145011,68960.0,68922.0,0.07222824]
[1717784291351,0.22146258,68960.0,68922.0,0.07222824]
[1717784291602,0.22146258,68960.0,68904.0,0.1936]
[1717784291603,0.95850451,68960.0,68959.0,0.00849907]
[1717784291853,0.145057,68938.0,68904.0,0.1936]
[1717784292050,0.145057,68938.0,68897.0,0.0963]
[1717784292051,0.454457,68938.0,68901.0,0.2039]
[1717784292263,0.61500815,68938.0,68901.0,0.2039]
[1717784292474,0.230057,68938.0,68937.0,0.15834933]
[1717784292675,0.130057,68938.0,68937.0,0.15834933]
[1717784293091,0.130057,68938.0,68937.0,0.35724933]
[1717784293501,0.130057,68938.0,68937.0,0.37724933]
[1717784293921,0.001512,68959.0,68937.0,0.37724933]
[1717784293922,0.145046,68944.0,68943.0,0.02]
[1717784294159,0.145046,68944.0,68943.0,0.14441893]
[1717784295078,0.145057,68938.0,68937.0,0.0089304]
[1717784295286,0.145057,68938.0,68937.0,0.15334933]
[1717784295485,0.145057,68938.0,68937.0,0.0089304]
[1717784295701,0.64322987,68938.0,68937.0,0.0089304]
[1717784295942,0.68537967,68938.0,68937.0,0.0089304]
[1717784296145,0.68537967,68938.0,68869.0,0.145202]
[1717784296146,1.1568617,68938.0,68899.0,0.02]
[1717784296346,1.1568617,68938.0,68889.0,0.43336945]
[1717784296347,0.07222824,68916.0,68889.0,0.43336945]
[1717784296709,0.145146,68896.0,68895.0,0.02]
[1717784296925,0.11144892,68915.0,68877.0,0.0994]
[1717784296926,0.145154,68892.0,68891.0,0.02]
[1717784297041,0.145175,68882.0,68877.0,0.0994]
[1717784297244,0.145175,68882.0,68864.0,0.1912]
[1717784297245,0.1448726,68882.0,68864.0,0.1912]
[1717784297440,0.1448726,68882.0,68832.0,0.05809]
[1717784297441,0.47405774,68882.0,68834.0,0.1043]
[1717784297644,0.56051679,68882.0,68838.0,0.43336945]
[1717784297891,0.4352236,68882.0,68874.0,0.0086]
[1717784298101,0.1448726,68882.0,68881.0,0.17295893]
[1717784299266,0.1448726,68882.0,68881.0,0.15295893]
[1717784299468,0.1448726,68882.0,68881.0,0.00854]
[1717784299699,0.4352236,68882.0,68881.0,0.00854]
[1717784299900,0.47576661,68882.0,68881.0,0.00854]
[1717784300103,0.51056321,68882.0,68881.0,0.00854]
[1717784300308,0.47576661,68882.0,68881.0,0.15295893]
[1717784300506,0.4352236,68882.0,68881.0,0.00854]
[1717784300707,0.54541328,68882.0,68881.0,0.00854]
[1717784300910,1.03441328,68882.0,68881.0,0.00854]
[1717784301213,1.03441328,68882.0,68867.0,0.0139304]
[1717784301214,0.145205,68868.0,68867.0,0.0139304]
[1717784301613,0.22092648,68868.0,68867.0,0.15834933]
[1717784301831,0.145205,68868.0,68867.0,0.15834933]
[1717784302028,0.145205,68868.0,68867.0,0.17834933]
[1717784302169,0.145205,68868.0,68867.0,0.15834933]
[1717784302338,0.145205,68868.0,68867.0,0.17834933]
[1717784302570,0.145205,68868.0,68867.0,0.15834933]
[1717784302770,0.57165559,68868.0,68867.0,0.0139304]
[1717784303027,0.57165559,68868.0,68831.0,0.02]
[1717784303028,0.145281,68832.0,68831.0,0.02]
[1717784303380,0.145281,68832.0,68814.0,0.2001]
[1717784303381,0.145317,68815.0,68814.0,0.2001]
[1717784303691,0.145317,68815.0,68814.0,0.34451893]
[1717784303885,0.03721726,68837.0,68831.0,0.02]